bitfinex-derivatives/quotes_BNBF0:USTF0_20250509
["timestamp","ask_amount","ask_price","bid_price","bid_amount"]
[1746809306683,0.26610863,635.51,634.58,0.797]
[1746809306881,0.26610863,635.51,634.59,0.6009261]
[1746809307083,0.26610863,635.51,634.58,0.797]
[1746809307283,0.26610863,635.51,634.59,1.52968345]
[1746809307480,0.26610863,635.51,634.6,1.52968345]
[1746809307681,0.26610863,635.51,634.61,0.60083768]
[1746809307884,0.26610863,635.51,634.62,0.60083653]
[1746809308178,0.26610863,635.51,634.63,0.60083525]
[1746809308383,0.26610863,635.51,634.64,0.60083525]
[1746809308582,0.26610863,635.51,634.58,0.797]
[1746809308583,0.26610863,635.51,634.65,0.60083525]
[1746809308785,0.27398986,635.5,634.66,0.60083525]
[1746809308979,0.27398986,635.5,634.67,0.60083525]
[1746809309178,0.26610863,635.49,634.58,0.797]
[1746809309382,0.26610863,635.49,634.59,1.52929141]
[1746809309688,0.26610863,635.49,634.6,0.92851349]
[1746809309886,0.27398986,635.5,634.61,0.60073887]
[1746809310079,0.27398986,635.5,634.62,0.60073887]
[1746809310278,0.26608564,635.49,634.63,0.60073887]
[1746809310478,0.26608564,635.49,634.58,0.797]
[1746809310479,0.26608564,635.49,634.64,0.6007243]
[1746809310681,0.26608564,635.49,634.58,0.797]
[1746809310883,0.26608564,635.49,634.59,0.60071919]
[1746809311085,0.26608564,635.49,634.6,0.60072139]
[1746809311287,0.26608564,635.49,634.61,0.60072074]
[1746809311584,0.26608564,635.49,634.62,0.600738]
[1746809311780,0.26608564,635.49,634.63,0.600738]
[1746809311983,0.27401575,635.48,634.64,0.60073854]
[1746809312183,0.27401575,635.48,634.58,0.797]
[1746809312382,0.27401575,635.48,634.59,0.60073747]
[1746809312584,0.26608564,635.47,634.58,0.797]
[1746809314787,0.27399525,635.5,634.58,0.797]
[1746809315387,0.26608564,635.49,634.58,0.797]
[1746809317092,0.26608564,635.49,634.58,0.78550883]
[1746809317789,0.27405999,635.48,634.58,0.78550883]
[1746809318289,0.26608564,635.47,634.58,0.78550883]
[1746809320600,0.26608564,635.47,634.5,0.31520882]
[1746809323807,0.27408481,635.46,634.5,0.31520882]
[1746809324205,0.26608564,635.45,634.5,0.31520882]
[1746809326912,0.98308564,635.45,634.5,0.31520882]
[1746809327113,0.717,635.45,634.5,0.31520882]
[1746809327713,0.26551008,635.44,634.5,0.31520882]
[1746809332317,0.717,635.45,634.5,0.31520882]
[1746809332716,0.26553968,635.44,634.5,0.31520882]
[1746809335919,0.27410748,635.43,634.5,0.31520882]
[1746809336517,0.26553968,635.42,634.5,0.31520882]
[1746809337837,0.27410748,635.43,634.5,0.31520882]
[1746809338121,0.26553607,635.42,634.5,0.31520882]
[1746809338421,0.717,635.45,634.5,0.31520882]
[1746809338723,0.27411827,635.41,634.5,0.31520882]
[1746809339221,0.26552335,635.4,634.5,0.31520882]
[1746809340625,0.26552335,635.39,634.5,0.31520882]
[1746809341121,0.26552335,635.38,634.5,0.31520882]
[1746809341423,0.26552335,635.37,634.5,0.31520882]
[1746809341920,0.26552335,635.36,634.5,0.31520882]
[1746809342122,0.26552335,635.35,634.5,0.31520882]
[1746809342423,0.26552335,635.34,634.5,0.31520882]
[1746809342825,0.27417442,635.33,634.5,0.31520882]
[1746809343025,0.53969777,635.33,634.5,0.31520882]
[1746809343323,0.26552335,635.32,634.5,0.31520882]
[1746809343523,0.26552335,635.31,634.5,0.31520882]
[1746809343824,0.27417442,635.33,634.5,0.31520882]
[1746809344024,0.31480198,635.32,634.5,0.31520882]
[1746809344221,0.58033741,635.32,634.5,0.31520882]
[1746809344622,0.26553543,635.31,634.5,0.31520882]
[1746809344824,0.5397239,635.31,634.5,0.31520882]
[1746809345226,0.26553543,635.3,634.5,0.31520882]
[1746809346229,0.26553543,635.29,634.5,0.31520882]
[1746809346529,0.26553543,635.28,634.5,0.31520882]
[1746809346831,0.26553543,635.3,634.5,0.31520882]
[1746809347830,0.53971093,635.29,634.5,0.31520882]
[1746809348431,0.26553543,635.28,634.5,0.31520882]
[1746809349230,0.26553543,635.27,634.5,0.31520882]
[1746809349530,0.26553543,635.26,634.5,0.31520882]
[1746809349931,0.26553543,635.25,634.5,0.31520882]
[1746809350326,0.26553543,635.24,634.5,0.31520882]
[1746809350628,0.26553543,635.23,634.5,0.31520882]
[1746809350932,0.53972173,635.23,634.5,0.31520882]
[1746809351730,0.26553543,635.22,634.5,0.31520882]
[1746809352034,0.26553543,635.21,634.5,0.31520882]
[1746809352435,0.26553543,635.2,634.5,0.31520882]
[1746809353034,0.26553543,635.19,634.5,0.31520882]
[1746809353635,0.26553543,635.22,634.5,0.31520882]
[1746809353840,0.31480198,635.32,634.5,0.31520882]
[1746809353841,0.2741755,635.18,634.5,0.31520882]
[1746809354236,0.26553543,635.17,634.5,0.31520882]
[1746809354933,0.622,635.16,634.5,0.31520882]
[1746809355336,0.26553543,635.15,634.5,0.31520882]
[1746809356736,0.27417334,635.14,634.5,0.31520882]
[1746809357241,0.26553543,635.13,634.5,0.31520882]
[1746809359742,0.27417334,635.14,634.5,0.31520882]
[1746809360142,0.26565352,635.13,634.5,0.31520882]
[1746809361443,0.26565352,635.12,634.5,0.31520882]
[1746809361744,0.26565352,635.11,634.5,0.31520882]
[1746809362145,0.26565352,635.1,634.5,0.31520882]
[1746809362643,0.26565352,635.09,634.5,0.31520882]
[1746809362840,0.26565352,635.15,634.5,0.31520882]
[1746809363039,0.27420575,635.09,634.5,0.31520882]
[1746809363445,0.26565352,635.08,634.5,0.31520882]
[1746809365644,0.2742252,635.07,634.5,0.31520882]
[1746809366147,0.26565352,635.06,634.5,0.31520882]
[1746809368744,0.27424465,635.05,634.5,0.31520882]
[1746809369349,0.26565352,635.04,634.5,0.31520882]
[1746809371951,0.27426842,635.03,634.5,0.31520882]
[1746809372250,0.26565352,635.02,634.5,0.31520882]
[1746809373248,0.27426842,635.03,634.5,0.31520882]
[1746809373557,0.26571078,635.02,634.5,0.31520882]
[1746809377751,0.27418414,635.01,634.5,0.31520882]
[1746809378151,0.26571078,635.0,634.5,0.31520882]
[1746809382160,0.27418414,635.01,634.5,0.31520882]
[1746809382458,0.26588916,635.0,634.5,0.31520882]
[1746809386762,0.54005062,635.0,634.5,0.31520882]
[1746809387055,0.27416146,635.0,634.5,0.31520882]
[1746809387261,0.26588916,634.99,634.5,0.31520882]
[1746809389667,0.26588916,635.08,634.5,0.31520882]
[1746809389868,0.27423276,634.98,634.5,0.31520882]
[1746809390166,0.26588916,634.97,634.5,0.31520882]
[1746809390367,0.27424356,634.97,634.5,0.31520882]
[1746809390767,0.26588916,634.96,634.5,0.31520882]
[1746809395473,0.27424356,634.97,634.5,0.31520882]
[1746809395874,0.26583189,634.96,634.5,0.31520882]
[1746809398772,0.27425437,634.95,634.5,0.31520882]
[1746809399469,0.54009699,634.95,634.5,0.31520882]
[1746809399773,0.26584262,634.94,634.5,0.31520882]
[1746809401774,0.27425653,634.93,634.5,0.31520882]
[1746809402775,0.26584262,634.92,634.5,0.31520882]
[1746809404776,0.27423924,634.91,634.5,0.31520882]
[1746809405178,0.26584262,634.9,634.5,0.31520882]
[1746809407779,0.26584262,635.08,634.5,0.31520882]
[1746809407980,0.27423924,634.89,634.5,0.31520882]
[1746809408276,0.26584262,635.08,634.5,0.31520882]
[1746809408482,0.27423924,634.88,634.5,0.31520882]
[1746809408784,0.26584262,635.08,634.5,0.31520882]
[1746809409180,0.27423924,634.87,634.5,0.31520882]
[1746809409377,0.26584262,635.08,634.5,0.31520882]
[1746809409582,0.54008186,634.86,634.5,0.31520882]
[1746809409783,0.26584262,634.85,634.5,0.31520882]
[1746809410178,0.27425437,634.84,634.5,0.31520882]
[1746809410482,0.26584262,634.83,634.5,0.31520882]
[1746809413288,0.31504993,634.82,634.5,0.31520882]
[1746809413888,0.5401878,634.81,634.5,0.31520882]
[1746809414188,0.26584262,634.8,634.5,0.31520882]
[1746809414984,0.26584262,634.8,632.14,0.99497732]
[1746809415189,0.26584262,634.8,634.43,0.13225387]
[1746809415488,0.26584262,634.79,634.43,0.13225387]
[1746809415892,0.26584262,634.78,634.43,0.13225387]
[1746809416283,0.26584262,634.77,634.43,0.13225387]
[1746809416689,0.26584262,634.76,634.43,0.13225387]
[1746809416891,0.54020835,634.76,634.43,0.13225387]
[1746809417089,0.26584262,634.75,634.43,0.13225387]
[1746809417685,0.26584262,634.74,634.43,0.13225387]
[1746809418282,0.26584262,634.73,634.43,0.13225387]
[1746809418487,0.26584262,634.72,634.43,0.13225387]
[1746809418789,0.26584262,634.71,634.43,0.13225387]
[1746809419090,0.27436573,634.76,634.43,0.13225387]
[1746809419391,0.26554454,634.75,634.43,0.13225387]
[1746809419690,0.26554454,634.74,634.43,0.13225387]
[1746809419992,0.26554454,634.73,634.43,0.13225387]
[1746809420290,0.26554454,634.72,634.43,0.13225387]
[1746809420686,0.26554454,634.71,634.43,0.13225387]
[1746809420890,0.26554454,634.7,634.43,0.13225387]
[1746809421293,0.26554454,634.69,634.43,0.13225387]
[1746809421591,0.26554454,634.75,634.43,0.13225387]
[1746809422087,0.26554454,634.74,634.43,0.13225387]
[1746809422391,0.26554454,634.75,634.43,0.13225387]
[1746809422792,0.2743614,634.73,634.43,0.13225387]
[1746809423093,0.26554454,634.72,634.43,0.13225387]
[1746809425790,0.27434193,634.71,634.43,0.13225387]
[1746809426194,0.26554454,634.7,634.43,0.13225387]
[1746809428797,0.2743614,634.69,634.43,0.13225387]
[1746809429097,0.26554454,634.68,634.43,0.13225387]
[1746809431799,0.27433977,634.67,634.43,0.13225387]
[1746809432000,0.26554454,634.66,634.43,0.13225387]
[1746809434803,0.26554454,634.81,634.43,0.13225387]
[1746809435004,0.27432355,634.65,634.43,0.13225387]
[1746809435302,0.26554454,634.81,634.43,0.13225387]
[1746809435603,0.27432031,634.64,634.43,0.13225387]
[1746809436103,0.26554454,634.63,634.43,0.13225387]
[1746809436502,0.26554454,634.81,634.43,0.13225387]
[1746809436703,0.27433977,634.62,634.43,0.13225387]
[1746809436903,0.26554454,634.81,634.43,0.13225387]
[1746809437202,0.27432031,634.61,634.43,0.13225387]
[1746809437403,0.26554454,634.81,634.43,0.13225387]
[1746809437702,0.27432031,634.6,634.43,0.13225387]
[1746809437998,0.26554454,634.81,634.43,0.13225387]
[1746809438203,0.53985404,634.59,634.43,0.13225387]
[1746809438402,0.2743095,634.59,634.43,0.13225387]
[1746809438598,0.26554454,634.8,634.43,0.13225387]
[1746809438802,0.53985404,634.58,634.43,0.13225387]
[1746809439002,0.26554454,634.57,634.43,0.13225387]
[1746809439404,0.2743095,634.56,634.43,0.13225387]
[1746809440105,0.26554454,634.55,634.43,0.13225387]
[1746809445311,0.2743095,634.56,634.43,0.13225387]
[1746809445809,0.26556536,634.55,634.43,0.13225387]
[1746809446906,0.26556536,634.81,634.43,0.13225387]
[1746809447110,0.27432896,634.54,634.43,0.13225387]
[1746809447310,0.26556536,634.53,634.43,0.13225387]
[1746809447511,0.53989432,634.53,634.43,0.13225387]
[1746809447811,0.27432896,634.53,634.43,0.13225387]
[1746809448010,0.26556536,634.52,634.43,0.13225387]
[1746809449012,0.26556536,634.52,634.4,0.09700876]
[1746809449810,0.26556536,634.81,634.4,0.09700876]
[1746809450010,0.27436032,634.51,634.4,0.09700876]
[1746809450506,0.53990838,634.5,634.4,0.09700876]
[1746809450810,0.26556536,634.49,634.4,0.09700876]
[1746809452812,0.27433869,634.48,634.4,0.09700876]
[1746809453412,0.26556536,634.47,634.4,0.09700876]
[1746809456613,0.27433869,634.48,634.4,0.09700876]
[1746809457314,0.26509818,634.47,634.4,0.09700876]
[1746809457914,0.27433869,634.48,634.4,0.09700876]
[1746809458213,0.26508246,634.47,634.4,0.09700876]
[1746809458824,0.27433869,634.46,634.4,0.09700876]
[1746809459209,0.26508246,634.45,634.4,0.09700876]
[1746809461719,0.27433869,634.44,634.4,0.09700876]
[1746809462018,0.26508246,634.43,634.4,0.09700876]
[1746809462914,0.27433869,634.44,634.4,0.09700876]
[1746809463117,0.31504993,634.82,634.4,0.09700876]
[1746809463316,0.26519487,634.43,634.4,0.09700876]
[1746809463619,0.27429977,634.59,634.4,0.09700876]
[1746809463813,0.26519487,634.58,634.4,0.09700876]
[1746809464819,0.27431274,634.57,634.4,0.09700876]
[1746809465117,0.26519487,634.56,634.4,0.09700876]
[1746809467021,0.26519487,634.65,634.4,0.09700876]
[1746809467820,0.27427274,634.64,634.4,0.09700876]
[1746809468120,0.26519487,634.63,634.4,0.09700876]
[1746809470817,0.27427923,634.62,634.4,0.09700876]
[1746809471223,0.26519487,634.61,634.4,0.09700876]
[1746809473825,0.27430733,634.6,634.4,0.09700876]
[1746809474222,0.26519487,634.59,634.4,0.09700876]
[1746809476828,0.27430733,634.58,634.4,0.09700876]
[1746809477322,0.26519487,634.57,634.4,0.09700876]
[1746809484529,0.27430733,634.58,634.4,0.09700876]
[1746809485232,0.26526623,634.57,634.4,0.09700876]
[1746809485829,0.27432031,634.56,634.4,0.09700876]
[1746809486425,0.26526623,634.55,634.4,0.09700876]
[1746809487331,0.26526623,634.55,634.37,0.07848935]
[1746809494741,0.26526623,634.95,634.37,0.07848935]
[1746809494943,0.27432571,634.54,634.37,0.07848935]
[1746809495144,0.26526623,634.94,634.37,0.07848935]
[1746809495444,0.27432571,634.53,634.37,0.07848935]
[1746809495637,0.26526623,634.93,634.37,0.07848935]
[1746809496038,0.27431274,634.52,634.37,0.07848935]
[1746809496338,0.26526623,634.51,634.37,0.07848935]
[1746809496541,0.53957465,634.51,634.37,0.07848935]
[1746809496837,0.27430842,634.51,634.37,0.07848935]
[1746809497044,0.26526623,634.5,634.37,0.07848935]
[1746809497844,0.27430842,634.49,634.37,0.07848935]
[1746809498246,0.26526623,634.48,634.37,0.07848935]
[1746809501142,0.27431706,634.47,634.37,0.07848935]
[1746809501346,0.26526623,634.46,634.37,0.07848935]
[1746809503848,0.27432571,634.45,634.37,0.07848935]
[1746809504350,0.26526623,634.44,634.37,0.07848935]
[1746809506850,0.27433653,634.43,634.37,0.07848935]
[1746809507253,0.26526623,634.42,634.37,0.07848935]
[1746809507852,0.27433653,634.43,634.37,0.07848935]
[1746809508154,0.26543531,634.42,634.37,0.07848935]
[1746809509852,0.27433653,634.41,634.37,0.07848935]
[1746809510353,0.26543531,634.4,634.37,0.07848935]
[1746809511754,0.27429436,634.57,634.37,0.07848935]
[1746809512558,0.502,634.96,634.37,0.07848935]
[1746809512857,0.27431274,634.56,634.37,0.07848935]
[1746809513156,0.26551103,634.55,634.37,0.07848935]
[1746809513454,0.27431274,634.55,634.37,0.07848935]
[1746809513755,0.26551103,634.54,634.37,0.07848935]
[1746809517353,0.27431274,634.55,634.37,0.07848935]
[1746809517761,0.26529446,634.54,634.37,0.07848935]
[1746809518758,0.26529446,634.95,634.37,0.07848935]
[1746809519058,0.27431923,634.53,634.37,0.07848935]
[1746809519257,0.26529446,634.94,634.37,0.07848935]
[1746809519459,0.26529446,634.93,634.37,0.07848935]
[1746809519858,0.26529446,634.92,634.37,0.07848935]
[1746809520158,0.26529446,634.93,634.37,0.07848935]
[1746809521859,0.26529446,634.92,634.37,0.07848935]
[1746809522161,0.26529446,634.93,634.37,0.07848935]
[1746809523863,0.502,634.96,634.37,0.07848935]
[1746809526064,0.502,634.96,634.38,0.531]
[1746809526364,0.27420359,635.0,634.38,0.531]
[1746809527667,0.31460886,635.71,634.38,0.531]
[1746809528068,0.27415174,634.99,634.38,0.531]
[1746809528365,0.26548204,635.55,634.38,0.531]
[1746809528663,0.53963378,634.98,634.38,0.531]
[1746809528861,0.26548204,634.97,634.38,0.531]
[1746809529161,0.53963378,634.97,634.38,0.531]
[1746809529566,0.27415174,634.97,634.38,0.531]
[1746809529863,0.78515174,634.97,634.38,0.531]
[1746809531665,0.26547671,634.96,634.38,0.531]
[1746809534071,0.27423924,634.95,634.38,0.531]
[1746809534370,0.26547671,634.94,634.38,0.531]
[1746809536875,0.27425653,634.93,634.38,0.531]
[1746809537075,0.26547671,634.92,634.38,0.531]
[1746809539779,0.27428463,634.91,634.38,0.531]
[1746809540278,0.26547671,634.9,634.38,0.531]
[1746809541677,0.26547671,634.9,634.38,0.25652824]
[1746809541877,0.26547671,634.89,632.23,0.99497732]
[1746809542077,0.26547671,634.89,634.19,0.01727285]
[1746809542291,0.26547671,634.88,634.19,0.01727285]
[1746809542575,0.511,634.97,634.19,0.01727285]
[1746809542882,0.26524331,634.96,634.19,0.01727285]
[1746809543182,0.26524331,634.95,634.19,0.01727285]
[1746809543585,0.26524331,634.94,634.19,0.01727285]
[1746809544283,0.26524331,634.93,634.19,0.01727285]
[1746809544583,0.26524331,634.92,634.19,0.01727285]
[1746809544980,0.26524331,634.91,634.19,0.01727285]
[1746809545384,0.26524331,634.9,634.19,0.01727285]
[1746809545678,0.26524331,634.89,634.19,0.01727285]
[1746809545884,0.53976054,634.89,634.19,0.01727285]
[1746809546184,0.26524331,634.88,634.19,0.01727285]
[1746809546385,0.26524331,634.88,634.19,0.0034285]
[1746809546684,0.26524331,634.87,634.19,0.0034285]
[1746809547084,0.26524331,634.86,634.19,0.0034285]
[1746809547685,0.26524331,634.85,634.19,0.0034285]
[1746809547984,0.26524331,634.84,634.19,0.0034285]
[1746809548285,0.26524331,634.83,634.19,0.0034285]
[1746809548581,0.26524331,634.82,634.19,0.0034285]
[1746809548789,2.0308231,634.79,634.19,0.0034285]
[1746809549588,0.26524331,634.78,634.19,0.0034285]
[1746809549887,0.26524331,634.77,634.19,0.0034285]
[1746809550187,0.26524331,634.76,634.19,0.0034285]
[1746809550588,0.26524331,634.75,634.19,0.0034285]
[1746809550888,0.26524331,634.74,634.19,0.0034285]
[1746809551190,0.26524331,634.73,634.19,0.0034285]
[1746809551482,0.26524331,634.72,634.19,0.0034285]
[1746809551888,0.53973888,634.71,634.19,0.0034285]
[1746809552090,0.26524331,634.7,634.19,0.0034285]
[1746809552489,0.26524331,634.69,634.19,0.0034285]
[1746809552883,0.26524331,634.68,634.19,0.0034285]
[1746809553991,0.26524331,634.67,634.19,0.0034285]
[1746809554185,0.26524331,634.66,633.2,0.519]
[1746809554691,0.26524331,634.65,633.2,0.519]
[1746809554890,0.26524331,634.64,633.2,0.519]
[1746809555286,0.26524331,634.63,633.2,0.519]
[1746809555593,0.26524331,634.62,633.2,0.519]
[1746809555896,0.26524331,634.61,633.2,0.519]
[1746809556295,0.26524331,634.6,633.2,0.519]
[1746809556494,0.97624331,634.6,633.2,0.519]
[1746809557094,0.26524331,634.59,633.2,0.519]
[1746809557395,0.711,634.6,633.2,0.519]
[1746809557793,0.26549671,634.59,633.2,0.519]
[1746809558090,0.26549671,634.58,633.2,0.519]
[1746809558695,0.26549671,634.57,633.2,0.519]
[1746809558996,0.26549671,634.56,633.2,0.519]
[1746809559297,0.26549671,634.55,633.2,0.519]
[1746809559697,0.26549671,634.54,633.2,0.519]
[1746809560197,0.26549671,634.53,633.2,0.519]
[1746809560997,0.26549671,634.52,633.2,0.519]
[1746809561194,0.26549671,634.51,633.2,0.519]
[1746809561498,0.26549671,634.5,633.2,0.519]
[1746809561899,0.26549671,634.49,633.2,0.519]
[1746809562298,0.26549671,634.48,633.2,0.519]
[1746809562600,0.26549671,634.58,633.2,0.519]
[1746809565498,0.27499556,634.59,633.2,0.519]
[1746809565898,0.26567071,634.58,633.2,0.519]
[1746809566901,0.27489889,634.57,633.2,0.519]
[1746809567599,0.26567071,634.56,633.2,0.519]
[1746809569903,0.27488586,634.55,633.2,0.519]
[1746809570506,0.26567071,634.54,633.2,0.519]
[1746809571105,0.26567071,634.53,633.2,0.519]
[1746809571405,0.27488586,634.55,633.2,0.519]
[1746809571406,0.26567071,634.52,633.2,0.519]
[1746809571802,0.26567071,634.51,633.2,0.519]
[1746809572006,0.26567071,634.5,633.2,0.519]
[1746809572307,0.26567071,634.49,633.2,0.519]
[1746809572607,0.26567071,634.48,633.2,0.519]
[1746809573209,0.26567071,634.47,633.2,0.519]
[1746809573508,0.26567071,634.46,633.2,0.519]
[1746809573707,0.26567071,634.45,633.2,0.519]
[1746809574007,0.26567071,634.44,633.2,0.519]
[1746809574208,0.26567071,634.43,633.2,0.519]
[1746809574410,0.27488586,634.55,633.2,0.519]
[1746809574710,0.26586462,634.54,633.2,0.519]
[1746809574911,0.26586462,634.53,633.2,0.519]
[1746809575106,0.26586462,634.52,633.2,0.519]
[1746809575410,0.26586462,634.51,633.2,0.519]
[1746809575606,0.31521379,634.49,633.2,0.519]
[1746809575806,0.26586462,634.48,633.2,0.519]
[1746809576010,2.0308231,634.44,633.2,0.519]
[1746809577712,0.26590039,634.43,633.2,0.519]
[1746809578011,2.0308231,634.34,633.2,0.519]
[1746809578815,0.26594331,634.33,633.2,0.519]
[1746809579113,2.0308231,634.34,633.2,0.519]
[1746809579114,0.26594331,634.32,633.2,0.519]
[1746809579309,0.26594331,634.31,633.2,0.519]
[1746809579715,0.26594331,634.3,633.2,0.519]
[1746809580012,0.26594331,634.29,633.2,0.519]
[1746809580309,0.26594331,634.28,633.2,0.519]
[1746809580709,0.26594331,634.27,633.2,0.519]
[1746809581415,0.26594331,634.26,633.2,0.519]
[1746809581816,0.26594331,634.25,633.2,0.519]
[1746809582111,0.26594331,634.24,633.2,0.519]
[1746809582415,0.26594331,634.23,633.2,0.519]
[1746809582716,0.26594331,634.45,633.2,0.519]
[1746809583115,0.26594331,634.44,633.2,0.519]
[1746809583414,0.26594331,634.43,633.2,0.519]
[1746809583717,0.26594331,634.42,633.2,0.519]
[1746809584013,0.26594331,634.41,633.2,0.519]
[1746809584417,0.26594331,634.4,630.47,0.99497732]
[1746809584620,0.26594331,634.4,630.66,0.31712808]
[1746809584813,0.54098668,634.39,630.67,1.56529248]
[1746809585013,0.54098668,634.39,630.68,1.56529248]
[1746809585212,0.54098668,634.39,630.69,1.56529248]
[1746809585513,0.54098668,634.39,630.7,1.56529248]
[1746809585714,0.54098668,634.39,630.71,1.56529248]
[1746809585917,0.54098668,634.39,630.72,1.56529248]
[1746809586120,0.54098668,634.39,630.73,1.56529248]
[1746809586316,0.54098668,634.39,630.74,1.56529248]
[1746809586520,0.54098668,634.39,630.75,1.56529248]
[1746809586723,0.26594331,634.38,630.76,1.56529248]
[1746809586916,0.93594331,634.38,630.77,1.56529248]
[1746809587219,0.93594331,634.38,630.78,1.56529248]
[1746809587417,0.93594331,634.38,630.79,1.56529248]
[1746809587617,0.93594331,634.38,630.8,1.56529248]
[1746809587924,0.54097473,634.37,630.81,1.56529248]
[1746809588122,0.54097473,634.37,630.82,1.56529248]
[1746809588322,0.26594331,634.36,630.83,1.56529248]
[1746809588517,0.26594331,634.36,630.84,1.56529248]
[1746809588716,0.26594331,634.35,630.85,1.56529248]
[1746809588920,0.26594331,634.34,630.86,2.48388357]
[1746809589121,0.26594331,634.34,630.87,1.56529248]
[1746809589420,0.26594331,634.33,630.88,1.56529248]
[1746809589621,0.26594331,634.33,630.89,1.56529248]
[1746809589923,0.26594331,634.32,630.9,2.48789873]
[1746809590117,0.26594331,634.32,630.91,1.56930764]
[1746809590318,0.26594331,634.32,630.92,1.56930764]
[1746809590516,0.26594331,634.31,630.93,1.56930764]
[1746809590721,0.26594331,634.36,630.94,1.85977089]
[1746809590915,0.27493689,634.31,630.95,1.57008174]
[1746809591118,0.27493689,634.31,630.96,1.57008174]
[1746809591316,0.27493689,634.31,630.97,1.57056475]
[1746809591521,0.26594331,634.3,630.98,1.57145229]
[1746809591820,0.26594331,634.3,630.99,1.57145229]
[1746809592019,0.26594331,634.3,631.0,1.5720072]
[1746809592222,0.26594331,634.3,631.01,1.5720072]
[1746809592524,0.26594331,634.3,631.02,1.57261035]
[1746809592726,0.26594331,634.29,631.03,1.57261035]
[1746809592921,0.26594331,634.28,631.04,2.49207173]
[1746809593127,0.26594331,634.28,631.05,1.57348423]
[1746809593324,0.26594331,634.27,631.06,1.57348423]
[1746809593520,0.26594331,634.27,631.07,1.57440953]
[1746809593722,0.26594331,634.26,631.08,1.57440953]
[1746809593922,0.54089758,634.26,631.09,1.57440953]
[1746809594119,0.26594331,634.25,631.1,1.57440953]
[1746809594418,0.26594331,634.25,631.09,0.91859109]
[1746809594419,0.26594331,634.24,631.11,2.49301574]
[1746809594623,0.26594331,634.23,631.12,2.49301574]
[1746809594823,0.26594331,634.23,631.13,1.57535878]
[1746809595023,0.26594331,634.22,631.14,1.57535878]
[1746809595224,0.26594331,634.22,631.15,1.57535878]
[1746809595424,0.26594331,634.21,631.16,2.49394987]
[1746809595626,0.26594331,634.21,631.17,1.57535878]
[1746809595828,0.26594331,634.2,631.18,1.57838775]
[1746809596126,0.26594331,634.2,631.19,1.57839737]
[1746809596326,0.26594331,634.19,631.2,1.57839737]
[1746809596522,0.26594331,634.19,631.21,1.57839737]
[1746809596723,0.26594331,634.19,630.86,0.27495427]
[1746809596724,0.26594331,634.18,631.22,2.49698846]
[1746809596924,0.26594331,634.18,631.23,1.57903254]
[1746809597227,0.54089215,634.17,631.24,1.58008721]
[1746809597422,0.54089215,634.17,631.25,1.58008721]
[1746809597627,0.26594331,634.16,631.26,2.50057402]
[1746809597826,0.26594331,634.16,631.27,1.58198293]
[1746809598021,0.26594331,634.15,631.28,2.50057402]
[1746809598227,0.26594331,634.14,631.29,2.50057402]
[1746809598428,0.26594331,634.14,631.3,1.58198293]
[1746809598724,0.26594331,634.13,631.31,1.58198293]
[1746809598923,0.26594331,634.13,631.32,1.58198293]
[1746809599122,0.26594331,634.12,631.33,1.58198293]
[1746809599324,0.26594331,634.12,631.34,1.58198293]
[1746809599520,0.26594331,634.11,631.35,1.58198293]
[1746809599721,0.26594331,634.1,631.36,2.50057402]
[1746809599923,0.26594331,634.1,631.37,1.58198293]
[1746809599924,0.54088129,634.1,631.37,1.58198293]
[1746809600126,0.26594331,634.09,631.38,1.58198293]
[1746809600322,0.26594331,634.08,631.39,1.87244618]
[1746809600527,0.26594331,634.08,631.4,1.58198293]
[1746809600829,0.26594331,634.07,631.41,1.58646638]
[1746809601028,0.26594331,634.07,631.42,1.58646638]
[1746809601328,0.26594331,634.06,631.43,1.87692963]
[1746809601528,0.26594331,634.06,631.44,1.58646638]
[1746809601823,0.26594331,634.05,631.45,1.58646638]
[1746809602028,0.26594331,634.05,631.46,1.58646638]
[1746809602227,0.26594331,634.05,631.47,1.58646638]
[1746809602425,0.26594331,634.04,631.48,1.58700149]
[1746809602628,0.26594331,634.03,631.49,1.87746474]
[1746809602927,0.54085197,634.03,631.5,1.58700149]
[1746809603124,0.26594331,634.02,631.51,1.58700149]
[1746809603326,0.31550717,633.9,631.52,1.90369771]
[1746809603528,0.31550717,633.9,631.53,1.9036927]
[1746809603729,0.26636685,633.89,631.54,1.58700149]
[1746809603922,0.26636685,633.89,631.55,1.87740375]
[1746809604126,0.26636685,633.89,631.56,1.59012597]
[1746809604323,0.26636685,633.89,631.57,1.59012597]
[1746809604629,0.26636685,633.89,631.58,1.88052823]
[1746809604826,0.26636685,633.89,631.59,1.59012597]
[1746809605026,0.26636685,633.89,631.6,1.59012597]
[1746809605229,0.26636685,633.89,631.61,1.90677706]
[1746809605426,0.31556691,633.78,631.62,1.90677205]
[1746809605631,0.31556691,633.78,631.63,1.59012597]
[1746809605826,0.26638898,633.77,631.64,1.59012597]
[1746809606031,0.26638898,633.77,631.65,1.88048691]
[1746809606231,0.26638898,633.77,631.66,1.59012597]